bitfinex/quotes_ETHUSD_20260114
["timestamp","ask_amount","ask_price","bid_price","bid_amount"]
[1768361686583,6.01600546,3324.5,3324.1,0.001]
[1768361686754,3.00800273,3324.5,3324.1,0.001]
[1768361687256,3.56300273,3324.5,3324.1,0.001]
[1768361687463,0.555,3324.5,3324.1,0.001]
[1768361687676,0.555,3324.5,3324.1,5.63772815]
[1768361687987,0.555,3325.2,3325.0,5.63672815]
[1768361688155,0.968,3325.6,3325.2,5.63672815]
[1768361688344,1.09873782,3325.3,3325.2,5.63672815]
[1768361688949,1.06495122,3325.3,3325.2,5.63672815]
[1768361689144,1.06495122,3325.3,3325.2,6.50114981]
[1768361689351,1e-08,3325.3,3325.2,6.50114981]
[1768361689647,0.413,3325.8,3325.3,5.63672815]
[1768361690074,0.02,3325.9,3325.5,5.63672815]
[1768361691073,0.02,3325.9,3325.6,5.63672815]
[1768361691287,0.02,3325.9,3325.8,5.63672815]
[1768361691952,0.575,3325.9,3325.8,5.63672815]
[1768361693195,0.575,3325.9,3325.8,5.4596405]
[1768361694457,1.13,3325.9,3325.8,5.4596405]
[1768361695689,1.13,3325.9,3325.5,7.81572815]
[1768361695870,1.13,3325.9,3325.6,1.28207916]
[1768361696065,1.13,3325.9,3325.5,5.63672815]
[1768361696270,1.13,3325.9,3325.6,0.001]
[1768361696969,1.685,3325.9,3325.6,0.001]
[1768361697370,7.69842185,3325.9,3324.9,5.63672815]
[1768361697582,7.69842185,3325.9,3325.0,5.63672815]
[1768361697893,13.29272325,3325.9,3325.0,5.63672815]
[1768361698291,4.69170495,3325.9,3325.0,5.63672815]
[1768361698461,0.413,3325.8,3325.1,5.63672815]
[1768361699394,0.968,3325.8,3325.1,5.63672815]
[1768361699978,3.97483891,3325.8,3325.1,5.63672815]
[1768361700557,6.98167782,3325.8,3325.1,5.63672815]
[1768361700766,6.98167782,3325.8,3325.0,8.339]
[1768361700767,5.92875601,3325.8,3325.0,8.339]
[1768361701166,5.92875601,3325.8,3325.0,18.339]
[1768361701366,5.92875601,3325.8,3325.0,18.054]
[1768361701867,6.48375601,3325.8,3325.0,17.04]
[1768361702067,6.48375601,3325.8,3325.0,7.04]
[1768361702686,6.48375601,3325.8,3325.0,17.04]
[1768361702996,0.413,3325.7,3325.0,22.67672815]
[1768361703295,0.413,3325.7,3325.0,5.63672815]
[1768361703496,0.413,3325.7,3325.0,15.63672815]
[1768361703666,0.413,3325.7,3324.9,10.0]
[1768361703871,0.413,3325.7,3325.0,11.52572815]
[1768361704076,0.413,3325.7,3325.0,5.63672815]
[1768361704275,3.97489301,3325.7,3325.0,5.63672815]
[1768361705673,0.968,3325.7,3325.0,5.63672815]
[1768361705903,0.968,3325.7,3325.1,6.00506081]
[1768361706907,1.523,3325.7,3325.1,6.00506081]
[1768361707082,7.29692591,3325.7,3325.2,0.90125745]
[1768361707278,5.77392591,3325.6,3325.0,30.0]
[1768361707492,1.11,3325.7,3325.1,6.00506081]
[1768361708305,1.11,3325.7,3325.3,0.001]
[1768361709301,1.04060961,3325.7,3325.6,6.00506081]
[1768361709499,1e-08,3325.8,3325.7,6.00506081]
[1768361709881,1e-08,3325.8,3325.7,0.03472249]
[1768361711703,1e-08,3325.8,3325.3,0.001]
[1768361711704,0.41300001,3325.8,3325.3,0.001]
[1768361711905,0.96800001,3325.8,3325.3,0.001]
[1768361714315,1.52300001,3325.8,3325.3,0.001]
[1768361714987,4.52982322,3325.8,3325.3,0.001]
[1768361715589,5.56296876,3325.8,3325.3,0.001]
[1768361716007,3.4199256,3325.7,3325.3,0.001]
[1768361716910,3.9749256,3325.7,3325.3,0.001]
[1768361718189,9.72284776,3325.7,3325.3,0.001]
[1768361718602,5.74792216,3325.6,3324.6,15.75601715]
[1768361718782,5.74792216,3325.6,3324.6,5.75601715]
[1768361719217,6.30292216,3325.6,3324.6,5.75601715]
[1768361719785,6.30292216,3325.6,3325.3,0.001]
[1768361720116,6.0141332,3325.5,3324.6,5.75601715]
[1768361721093,3.0070666,3325.5,3324.6,5.75601715]
[1768361721293,3.0070666,3325.5,3324.7,5.75601715]
[1768361721294,11.76205536,3325.5,3324.7,5.75601715]
[1768361721504,11.76205536,3325.5,3324.5,5.75601715]
[1768361721699,12.31705536,3325.5,3324.5,5.75601715]
[1768361722201,5.74792216,3325.4,3324.5,5.75601715]
[1768361722410,0.413,3325.3,3324.5,5.75601715]
[1768361722607,0.09327822,3325.3,3324.5,6.63242926]
[1768361722808,5.74792216,3325.4,3324.5,6.63242926]
[1768361722809,5.74792216,3325.4,3324.5,5.75601715]
[1768361723013,5.74792216,3325.2,3324.1,3.72277466]
[1768361723218,5.74792216,3325.2,3324.2,30.0]
[1768361723421,5.74792216,3325.2,3324.2,14.174]
[1768361723591,5.74792216,3325.2,3324.2,1.78968793]
[1768361724115,6.30292216,3325.2,3324.2,1.78968793]
[1768361724419,0.555,3325.2,3324.4,5.91601715]
[1768361724623,0.555,3325.2,3324.6,6.21651715]
[1768361724813,0.555,3325.2,3324.7,6.11283004]
[1768361725889,0.555,3325.2,3324.9,5.75601715]
[1768361726505,1.11,3325.2,3325.0,5.75601715]
[1768361729123,1.665,3325.2,3325.0,5.75601715]
[1768361729731,0.6184235,3325.8,3325.5,5.75601715]
[1768361730221,0.6184235,3325.8,3325.4,5.75601715]
[1768361730222,0.3179235,3325.8,3325.4,5.75601715]
[1768361731096,0.3179235,3325.8,3325.4,8.76310972]
[1768361731723,0.8729235,3325.8,3325.4,8.76310972]
[1768361731922,0.002,3325.6,3325.4,8.76310972]
[1768361732123,0.8729235,3325.8,3325.5,6.63242812]
[1768361732502,0.3849467,3325.8,3325.5,6.63242812]
[1768361733397,0.0279467,3325.8,3325.5,6.63242812]
[1768361734612,0.5829467,3325.8,3325.6,5.75601715]
[1768361737121,1.1379467,3325.8,3325.6,5.75601715]
[1768361737312,1.1379467,3325.8,3325.6,6.14974708]
[1768361739428,1.6929467,3325.8,3325.6,6.14974708]
[1768361739637,1.6929467,3325.8,3325.6,0.39372993]
[1768361740403,1.6929467,3325.8,3325.6,6.19785505]
[1768361741732,1.6929467,3325.8,3325.3,0.001]
[1768361742034,2.2479467,3325.8,3325.3,0.001]
[1768361743630,2.2479467,3325.8,3325.6,0.001]
[1768361744334,2.8029467,3325.8,3325.6,0.001]
[1768361746341,3.2159467,3325.8,3325.6,0.001]
[1768361746712,3.7709467,3325.8,3325.6,0.001]
[1768361747641,11.04565661,3325.8,3325.6,0.001]
[1768361747842,5.3025182,3325.8,3325.6,0.001]
[1768361748042,3.7709467,3325.8,3325.6,0.001]
[1768361749244,4.3259467,3325.8,3325.6,0.001]
[1768361750043,4.3259467,3325.8,3325.3,0.001]
[1768361750044,3.9129467,3325.8,3325.3,0.001]
[1768361750214,0.413,3325.7,3325.3,0.001]
[1768361750544,3.9129467,3325.8,3325.3,6.4157101]
[1768361750726,3.9129467,3325.8,3325.3,6.38563763]
[1768361751742,4.4679467,3325.8,3325.3,6.38563763]
[1768361752539,4.4679467,3325.8,3325.3,9.3928609]
[1768361752722,4.4679467,3325.8,3325.4,5.80412512]
[1768361752913,4.4679467,3325.8,3325.4,6.74341121]
[1768361754018,5.0229467,3325.8,3325.4,6.74341121]
[1768361754218,5.0229467,3325.8,3325.4,5.80412512]
[1768361755311,4.5349323,3325.8,3325.4,5.80412512]
[1768361756431,5.0899323,3325.8,3325.4,5.80412512]
[1768361759149,5.6449323,3325.8,3325.4,5.80412512]
[1768361759645,5.6449323,3325.8,3325.5,5.80412512]
[1768361759840,5.6449323,3325.8,3325.7,5.80412512]
[1768361760046,11.38807071,3325.8,3325.6,0.88112781]
[1768361760245,5.6449323,3325.8,3325.4,5.80412512]
[1768361761221,5.6449323,3325.8,3325.3,5.80512512]
[1768361761646,6.1999323,3325.8,3325.3,5.80512512]
[1768361764255,6.7549323,3325.8,3325.5,5.80412512]
[1768361764453,6.7549323,3325.8,3325.5,6.68535333]
[1768361765324,6.26694028,3325.8,3325.5,6.68535333]
[1768361765953,6.22709928,3325.8,3325.6,5.52784993]
[1768361766744,6.78209928,3325.8,3325.6,5.52784993]
[1768361768854,4.00109928,3325.8,3325.6,5.52784993]
[1768361769043,4.55609928,3325.8,3325.6,5.52784993]
[1768361769356,2.55609928,3325.8,3325.6,5.52784993]
[1768361769517,2.04309928,3325.8,3325.6,5.52784993]
[1768361771353,2.59809928,3325.8,3325.6,5.52784993]
[1768361771958,1.38481195,3326.2,3325.6,5.52784993]
[1768361771959,3.36816536,3326.8,3325.9,5.52784993]
[1768361772221,0.413,3326.7,3326.1,5.52784993]
[1768361773820,0.968,3326.7,3326.1,5.52784993]
[1768361774234,0.413,3326.6,3326.1,5.52784993]
[1768361777050,0.968,3326.6,3326.1,5.52784993]
[1768361778037,0.002,3326.3,3326.1,5.52784993]
[1768361778239,0.0007158,3326.3,3326.1,6.3813026]
[1768361779455,0.5557158,3326.3,3326.1,6.3813026]
[1768361780065,0.97,3326.6,3326.3,5.5125342]
[1768361780066,0.557,3326.6,3326.3,5.5125342]
[1768361780240,0.557,3326.6,3326.3,5.8130342]
[1768361780442,0.557,3326.6,3326.4,0.58130342]
[1768361780647,0.557,3326.6,3326.3,0.3005]
[1768361781163,0.557,3326.6,3326.2,0.3005]
[1768361782264,0.557,3326.6,3326.2,3.30692601]
[1768361782434,1.112,3326.6,3326.2,3.30692601]
[1768361782874,1.112,3326.6,3326.3,5.8130342]
[1768361783044,1.112,3326.6,3326.5,5.5125342]
[1768361785078,1.667,3326.6,3326.5,5.5125342]
[1768361785256,1.667,3326.6,3326.5,5.8130342]
[1768361785450,1.3665,3326.6,3326.5,5.8130342]
[1768361787244,1.3665,3326.6,3326.5,0.3005]
[1768361787444,1.9215,3326.6,3326.1,16.8825342]
[1768361787644,1.9215,3326.6,3326.2,15.633]
[1768361788781,1.9215,3326.6,3326.2,14.287]
[1768361788977,1.9215,3326.6,3326.1,1.37]
[1768361789785,1.9215,3326.6,3326.1,6.8825342]
[1768361789983,2.4765,3326.6,3326.1,6.8825342]
[1768361790277,2.4765,3326.6,3326.2,0.98891217]
[1768361790449,0.002,3326.3,3326.2,0.98891217]
[1768361790650,2.4765,3326.6,3326.2,0.98891217]
[1768361791302,2.4765,3326.6,3326.2,6.50144637]
[1768361791795,2.4765,3326.6,3326.2,0.98891217]
[1768361791957,2.4765,3326.6,3326.0,1.37]
[1768361792400,3.0315,3326.6,3326.0,1.37]
[1768361793064,3.0315,3326.6,3326.0,6.8825342]
[1768361793561,3.0315,3326.6,3326.0,1.37]
[1768361793798,6.59296899,3326.6,3326.0,1.37]
[1768361794001,3.56146899,3326.5,3326.0,1.37]
[1768361794187,3.0315,3326.6,3326.0,1.37]
[1768361794499,3.0315,3326.6,3325.9,5.6725342]
[1768361794699,3.5865,3326.6,3325.9,6.58186495]
[1768361795065,3.5865,3326.6,3325.9,9.58856547]
[1768361795306,3.5865,3326.6,3325.9,6.58186495]
[1768361796983,3.5865,3326.6,3325.9,9.58856702]
[1768361797177,4.1415,3326.6,3325.9,9.58856702]
[1768361797477,4.1415,3326.6,3326.0,0.9589567]
[1768361797699,4.1415,3326.6,3325.9,8.67923705]
[1768361798001,7.68913691,3326.6,3325.9,3.16670285]
[1768361798307,7.68913691,3326.6,3325.8,0.001]
[1768361798308,7.68913691,3326.6,3325.8,8.91708466]
[1768361798514,7.68913691,3326.6,3325.9,5.74932398]
[1768361799305,4.1415,3326.6,3325.9,5.74932398]
[1768361799502,4.1415,3326.6,3325.9,6.68233245]
[1768361799669,4.6965,3326.6,3325.9,6.68233245]
[1768361800170,5.1095,3326.6,3325.9,6.68233245]
[1768361800501,3.53544045,3326.5,3326.0,0.16]
[1768361800673,3.04752335,3326.5,3326.0,0.16]
[1768361801670,3.03699149,3326.5,3326.0,0.16]
[1768361801873,1.47136405,3326.5,3326.0,0.16]
[1768361802071,2.02636405,3326.5,3326.0,5.90932398]
[1768361802266,5.0325696,3326.5,3326.0,5.90932398]
[1768361802472,8.06756043,3326.5,3326.2,0.001]
[1768361802672,2.59351004,3326.4,3326.2,0.001]
[1768361802971,0.002,3326.3,3326.2,0.001]
[1768361804519,0.557,3326.3,3326.2,0.001]
[1768361806922,1.112,3326.3,3326.2,0.001]
[1768361807124,1.525,3326.3,3326.2,0.001]
[1768361807993,1.112,3326.3,3326.2,5.75032398]
[1768361808188,1.525,3326.3,3326.2,5.75032398]
[1768361808630,1.07401328,3326.3,3326.2,5.75032398]
[1768361808788,1.07401328,3326.3,3326.2,6.32535638]
[1768361808991,0.555,3326.5,3326.2,0.5760324]
[1768361809213,0.555,3326.5,3326.2,6.05082398]
[1768361809415,0.55234555,3326.5,3326.3,0.03472248]
[1768361810649,0.2056061,3326.5,3326.3,0.03472248]
[1768361811027,0.2056061,3326.5,3326.4,5.74932398]
[1768361811816,0.7606061,3326.5,3326.4,5.74932398]
[1768361812718,0.7606061,3326.5,3326.3,0.03472248]
[1768361813559,0.7606061,3326.5,3326.3,5.78404646]
[1768361813773,0.7606061,3326.5,3326.3,0.03472248]
[1768361813949,0.7606061,3326.5,3326.3,6.36255111]
[1768361814150,1.3156061,3326.5,3326.3,6.36255111]
[1768361816452,1.5556061,3326.5,3326.3,6.36255111]
[1768361816850,1.4896061,3326.5,3326.3,0.61322713]
[1768361817052,1.4896061,3326.5,3326.4,5.94774669]
[1768361818181,1.3896061,3326.5,3326.4,0.19842271]
[1768361818381,1.3896061,3326.5,3326.4,5.94774669]
[1768361818966,0.8216061,3326.5,3326.4,5.94774669]
[1768361819174,2.2271061,3326.6,3326.5,5.74932398]
[1768361820580,1.73921904,3326.6,3326.4,0.19842271]
[1768361820790,1.73921904,3326.6,3326.5,5.74932398]
[1768361821586,2.29421904,3326.6,3326.5,5.74932398]
[1768361823283,2.29421904,3326.6,3326.3,0.03472248]
[1768361823455,2.29421904,3326.6,3326.3,5.95466871]
[1768361823866,2.84921904,3326.6,3326.3,5.95466871]
[1768361825366,2.84921904,3326.6,3326.5,5.68928248]
[1768361826798,3.40421904,3326.6,3326.5,5.68928248]
[1768361827369,3.40421904,3326.6,3326.4,5.68928248]
[1768361827581,3.40421904,3326.6,3326.3,0.03472248]
[1768361827754,3.40421904,3326.6,3326.3,5.72400496]
[1768361828155,1.20421904,3326.6,3326.3,5.72400496]
[1768361829268,1.75921904,3326.6,3326.3,5.72400496]
[1768361829978,1.75921904,3326.6,3326.3,5.68928248]
[1768361830775,1.75921904,3326.6,3326.2,1.371]
[1768361830970,4.68395457,3326.6,3326.2,1.371]
[1768361831179,2.91554184,3326.5,3326.2,1.371]
[1768361831492,1.75921904,3326.6,3326.2,1.371]
[1768361831666,0.555,3326.5,3326.2,1.371]
[1768361833008,0.555,3326.5,3326.2,0.001]
[1768361834164,1.11,3326.5,3326.2,0.001]
[1768361835472,0.413,3326.4,3326.2,0.001]
[1768361836504,0.968,3326.4,3326.2,0.001]
[1768361837014,3.36149081,3326.4,3326.0,1.37]
[1768361837212,0.9387219,3326.4,3325.5,5.68928248]
[1768361837506,0.9387219,3326.4,3326.0,5.68928248]
[1768361837507,0.555,3326.4,3326.0,5.68928248]
[1768361837708,0.413,3326.3,3326.0,5.68928248]
[1768361838977,0.968,3326.3,3326.0,5.68928248]
[1768361839950,0.555,3326.3,3326.0,5.68928248]
[1768361841299,0.62208132,3326.3,3326.0,5.68928248]
[1768361843316,0.62208132,3326.3,3325.7,5.6505683]
[1768361843609,0.62208132,3326.3,3325.7,9.86995689]
[1768361843815,1.17708132,3326.3,3325.7,6.86307354]
[1768361845317,1.17708132,3326.3,3325.9,5.6505683]
[1768361846215,1.73208132,3326.3,3325.9,5.6505683]
[1768361848599,2.28708132,3326.3,3325.9,5.6505683]
[1768361849019,2.28708132,3326.3,3325.9,8.65725197]
[1768361849200,2.28708132,3326.3,3326.2,0.001]
[1768361850617,2.28708132,3326.3,3326.2,5.4915683]
[1768361851113,2.84208132,3326.3,3326.2,0.001]
[1768361851413,0.3988,3326.4,3326.2,0.001]
[1768361852318,0.3988,3326.4,3326.2,6.34137497]
[1768361853015,1.75921904,3326.6,3326.4,5.4905683]
[1768361853218,1.45335231,3327.2,3326.4,5.4905683]
[1768361853388,0.555,3326.6,3326.4,5.4905683]
[1768361855498,0.31077124,3326.6,3326.3,8.42099792]
[1768361855700,0.31077124,3326.6,3326.4,6.3418448]
[1768361855910,0.86577124,3326.6,3326.4,6.3418448]
[1768361856099,0.86577124,3326.6,3326.5,5.41466434]
[1768361857517,0.413,3326.9,3326.6,5.41466434]
[1768361858020,0.413,3327.0,3326.8,5.41466434]
[1768361858415,0.968,3327.0,3326.8,5.41466434]
[1768361860822,0.555,3327.0,3326.8,5.41466434]
[1768361861022,1.523,3327.0,3326.8,5.41466434]
[1768361862152,0.9534,3328.3,3327.5,5.41466434]
[1768361862295,2.8569371,3328.3,3327.5,5.41466434]
[1768361862626,1.3664,3328.3,3327.5,5.41466434]
[1768361863201,0.9534,3328.3,3327.5,5.41466434]
[1768361863502,0.413,3328.2,3327.5,5.41466434]
[1768361864625,1.5084,3328.3,3327.5,5.41466434]
[1768361864792,0.413,3328.2,3327.6,5.41466434]
[1768361865428,0.413,3328.2,3327.8,5.41466434]
[1768361865728,0.413,3328.1,3327.8,5.41466434]
[1768361866025,0.413,3328.0,3327.8,5.41466434]
[1768361867015,0.413,3328.0,3327.5,5.57466434]
[1768361867943,0.555,3328.2,3327.6,5.41466434]
[1768361868148,0.413,3328.1,3327.6,5.41466434]
[1768361868728,1.11,3328.2,3327.6,5.41466434]
[1768361868729,0.413,3328.0,3327.6,5.41466434]
[1768361870516,0.413,3328.0,3327.5,0.16]
[1768361870818,1.42076332,3328.0,3327.5,5.57466434]
[1768361871029,0.968,3328.0,3327.5,5.57466434]
[1768361872850,0.002,3327.7,3327.5,5.57466434]
[1768361874952,1.456272,3328.0,3327.5,5.57466434]
[1768361875477,14.90596544,3340.8,3327.9,5.41466434]
[1768361875478,0.413,3328.6,3327.9,5.41466434]
[1768361875640,1.8327843,3328.5,3327.7,5.41466434]
[1768361875826,0.413,3328.4,3327.7,5.41466434]
[1768361878755,0.968,3328.4,3327.7,5.41466434]
[1768361879526,3.97245704,3328.4,3327.7,5.41466434]
[1768361879859,0.968,3328.4,3327.7,5.41466434]
[1768361880366,2.14431126,3330.6,3327.7,5.41466434]
[1768361880666,2.32311713,3329.4,3328.4,5.41466434]
[1768361881161,1.91011713,3329.3,3328.4,5.41466434]
[1768361882361,1.91011713,3329.3,3327.8,5.41466434]
[1768361882362,2.35643562,3329.2,3327.8,5.41466434]
[1768361882560,2.64424733,3329.2,3327.8,5.41466434]
[1768361883473,2.34890679,3329.0,3327.8,5.41466434]
[1768361883631,2.34890679,3328.8,3327.8,5.41466434]
[1768361884031,0.555,3329.2,3327.8,5.41466434]
[1768361884339,1.07402172,3331.4,3329.9,14.115334]
[1768361884664,9.74854107,3331.5,3329.9,5.41466434]
[1768361884665,1.33709849,3331.3,3329.9,5.41466434]
[1768361884867,0.6443822,3331.2,3329.9,5.41466434]
[1768361885359,9.00630441,3331.0,3329.9,5.41466434]
[1768361885573,0.94193044,3330.9,3329.9,5.41466434]
[1768361885854,0.002,3330.7,3329.9,5.41466434]
[1768361886055,0.413,3330.6,3329.9,5.41466434]
[1768361886936,0.413,3330.6,3329.3,6.44251109]
[1768361887158,0.413,3330.6,3329.7,6.44251109]
[1768361887467,0.002,3330.7,3330.0,6.44251109]
[1768361887763,0.413,3330.5,3330.0,6.44251109]
[1768361888872,0.968,3330.5,3330.0,6.44251109]
[1768361889677,3.97056745,3330.5,3330.0,6.44251109]
[1768361890042,0.968,3330.5,3330.0,6.44251109]
[1768361890760,3.97063947,3330.5,3330.0,6.44251109]
[1768361891068,4.66815795,3330.5,3330.0,6.44251109]
[1768361891245,5.22315795,3330.5,3330.0,6.44251109]
[1768361891646,2.22051848,3330.5,3330.0,6.44251109]
[1768361891862,1.80751848,3330.5,3330.0,6.44251109]
[1768361892088,0.412,3330.4,3330.0,6.44251109]
[1768361893660,0.967,3330.4,3330.0,6.44251109]
[1768361894275,0.967,3330.4,3329.9,20.55784509]
[1768361894469,3.96964951,3330.4,3329.9,6.44251109]
[1768361894675,0.967,3330.4,3329.9,6.44251109]
[1768361894875,3.96968027,3330.4,3329.9,6.44251109]
[1768361895084,0.967,3330.4,3329.9,6.44251109]
[1768361895277,5.83890103,3330.2,3329.4,24.115334]
[1768361895459,5.83890103,3330.2,3329.4,20.55784509]
[1768361895667,4.1773591,3330.4,3329.7,14.115334]
[1768361895965,4.1773591,3330.4,3329.9,14.115334]
[1768361896145,4.7323591,3330.4,3329.9,14.115334]
[1768361896347,1.3177,3330.4,3329.9,20.55784509]
[1768361896547,0.412,3330.3,3329.9,6.44251109]
[1768361897362,4.1126913,3330.4,3329.9,6.44251109]
[1768361897555,0.412,3330.3,3329.9,6.44251109]
[1768361898163,0.529,3330.9,3330.3,18.08419137]
[1768361898348,6.02482695,3331.7,3330.4,30.0]
[1768361898548,7.03930964,3331.6,3330.3,6.16885737]
[1768361898777,0.555,3330.9,3330.4,30.0]
[1768361898985,0.412,3330.8,3330.4,30.0]
[1768361899678,6.52027662,3330.8,3329.9,36.16885737]
[1768361899877,9.52259679,3330.8,3330.0,36.16885737]
[1768361900089,9.52259679,3330.8,3330.1,30.0]
[1768361900972,10.07759679,3330.8,3330.1,30.0]
[1768361902777,3.96932017,3330.8,3330.3,36.16885737]
[1768361902980,3.96932017,3330.8,3330.3,6.16885737]
[1768361903173,3.96932017,3330.8,3330.0,30.0]
[1768361903368,4.52432017,3330.8,3330.1,30.0]
[1768361903774,10.62662833,3330.8,3330.2,30.0]
[1768361903982,10.62662833,3330.8,3330.1,30.0]
[1768361904154,4.52432017,3330.8,3330.2,30.0]
[1768361904869,4.52432017,3330.8,3330.3,36.16885737]
[1768361905068,4.52432017,3330.8,3330.2,30.0]
[1768361905268,10.62318826,3330.8,3330.2,30.0]
[1768361905465,13.62550843,3330.8,3330.1,30.0]
[1768361905665,7.52664034,3330.8,3330.3,16.16885737]
[1768361905869,7.52664034,3330.8,3329.6,36.32885737]
[1768361905870,6.09886809,3330.7,3329.6,36.32885737]
[1768361906186,6.09886809,3330.7,3329.9,30.0]
[1768361906487,6.5089339,3330.6,3329.9,30.0]
[1768361907269,0.412,3330.6,3329.9,30.0]
[1768361907582,0.76554464,3330.6,3329.9,30.0]
[1768361907763,6.24360981,3330.4,3329.6,0.16]
[1768361907963,6.24360981,3330.4,3329.7,30.0]
[1768361908163,6.79860981,3330.4,3329.7,30.0]
[1768361909001,0.555,3330.4,3329.8,30.0]
[1768361909211,6.79401024,3330.4,3329.8,30.0]
[1768361909498,6.79401024,3330.4,3329.0,36.16885737]
[1768361909499,6.23901024,3330.1,3329.0,36.16885737]
[1768361909703,9.72691492,3330.2,3328.9,10.16]
[1768361909704,6.65101024,3330.0,3329.1,16.16885737]
[1768361909860,6.23901024,3329.8,3328.7,6.16885737]
[1768361910065,6.23901024,3329.6,3328.8,0.16]
[1768361910297,6.23901024,3329.4,3328.8,0.16]
[1768361910602,6.23901024,3329.4,3328.6,0.16]
[1768361910785,6.2781033,3329.3,3327.9,6.16985737]
[1768361911100,6.2781033,3329.3,3328.3,30.0]
[1768361911286,6.27549978,3329.0,3327.9,0.001]
[1768361911489,6.27549978,3328.8,3328.0,3.526]
[1768361911688,6.27549978,3328.8,3327.9,0.001]
[1768361911892,6.27549978,3328.8,3327.9,1.0171]
[1768361911893,6.27549978,3328.6,3327.9,1.0171]
[1768361912070,0.412,3328.5,3327.9,0.001]
[1768361912271,0.002,3330.5,3328.4,6.32885737]
[1768361912516,3.55764699,3330.4,3329.8,30.0]
[1768361912812,0.412,3330.5,3330.4,0.09012]
[1768361912963,9.00414189,3331.8,3330.4,0.09012]
[1768361913166,9.72691492,3331.6,3330.4,0.09012]
[1768361913364,0.06648993,3331.4,3330.4,0.09012]
[1768361913801,0.06648993,3331.4,3330.0,6.16885737]
[1768361913802,6.00366222,3331.3,3330.0,6.16885737]
[1768361914009,0.412,3331.2,3330.3,6.16885737]
[1768361914298,0.19792001,3331.2,3330.3,6.16885737]
[1768361915727,0.75292001,3331.2,3330.3,6.16885737]
[1768361915894,3.00201134,3331.1,3330.4,0.61688574]
[1768361917498,3.75487823,3331.2,3330.4,0.61688574]
[1768361918200,7.31183645,3331.2,3330.4,0.61688574]
[1768361920230,7.31183645,3331.2,3330.4,6.80426145]
[1768361920442,4.30987823,3331.2,3330.4,6.80426145]
[1768361920632,0.412,3331.1,3330.4,6.80426145]
[1768361922036,3.41402069,3331.1,3330.6,0.001]
[1768361923156,3.96902069,3331.1,3330.6,0.001]
[1768361925932,7.97860821,3331.1,3330.6,0.001]
[1768361926133,8.94296903,3331.1,3330.6,0.001]
[1768361927569,8.4904022,3331.1,3330.6,0.001]
[1768361928649,9.0454022,3331.1,3330.6,0.001]
[1768361929433,9.49774798,3331.1,3330.6,0.001]
[1768361929646,0.45234578,3331.0,3330.6,0.001]
[1768361930464,3.00218478,3331.0,3330.6,0.001]
[1768361931065,3.55718478,3331.0,3330.6,0.001]
[1768361932484,6.55936956,3331.0,3330.2,1.96837571]
[1768361933055,3.55718478,3331.0,3330.2,1.96837571]
[1768361933456,7.11436956,3331.0,3330.2,1.96837571]
[1768361933666,4.11218478,3331.0,3330.6,0.001]
[1768361933875,5.29424322,3331.0,3330.6,0.001]
[1768361934258,8.296428,3331.0,3330.6,0.001]
[1768361934457,5.29424322,3331.0,3330.6,0.001]
[1768361935866,5.84924322,3331.0,3330.6,0.001]
[1768361936073,8.851428,3331.0,3330.6,0.001]
[1768361936273,5.84924322,3331.0,3330.6,0.001]
[1768361937282,8.851428,3331.0,3330.6,0.001]
[1768361938185,5.84924322,3331.0,3330.6,0.001]
[1768361938372,1.09282832,3330.9,3330.6,0.001]
[1768361938763,4.09504483,3330.9,3330.6,0.001]
[1768361940555,7.09726134,3330.9,3330.6,0.001]
[1768361940754,4.65004483,3330.9,3330.6,0.001]
[1768361940951,4.77386455,3330.8,3329.9,0.3005]
[1768361941159,1.5828093,3330.8,3329.9,6.48787571]
[1768361941478,4.65004483,3330.9,3330.3,6.18737571]
[1768361941479,0.412,3330.7,3330.3,6.18737571]
[1768361943081,0.967,3330.7,3330.3,6.18737571]
[1768361945382,0.969,3330.7,3330.3,6.18737571]
[1768361945576,1.524,3330.7,3330.3,6.18737571]
[1768361946685,4.52638933,3330.7,3330.3,6.18737571]
[1768361947685,1.524,3330.7,3330.3,6.18737571]
[1768361947886,2.079,3330.7,3330.3,6.18737571]
[1768361948665,5.08139234,3330.7,3330.3,6.18737571]
[1768361949295,2.079,3330.7,3330.3,6.18737571]
[1768361950605,2.634,3330.7,3330.3,6.18737571]
[1768361952591,0.177,3330.9,3330.6,6.31933516]
[1768361952759,0.555,3330.7,3330.6,6.31933516]
[1768361953097,0.555,3330.7,3330.3,6.93807273]
[1768361954402,0.555,3330.7,3330.3,0.61873757]
[1768361954700,0.555,3330.7,3330.2,30.0]
[1768361954904,4.86426246,3330.6,3329.6,28.912]
[1768361955061,4.86426246,3330.6,3329.8,22.33533516]
[1768361955266,4.86426246,3330.6,3329.9,9.128]
[1768361955466,7.86676775,3330.6,3329.9,15.44733516]
[1768361955777,7.86676775,3330.6,3329.9,6.31933516]
[1768361956098,4.86426246,3330.6,3329.9,6.31933516]
[1768361956613,4.86687636,3330.5,3329.7,6.31933516]
[1768361956762,5.27887636,3330.4,3329.8,0.93226407]
[1768361956963,5.27887636,3330.4,3329.6,13.00330552]
[1768361957163,5.27887636,3330.4,3329.6,9.32264068]
[1768361957815,5.83387636,3330.4,3329.6,9.32266184]
[1768361958312,5.83387636,3330.4,3329.6,16.31933516]
[1768361958610,4.87950398,3330.3,3329.1,6.78110642]
[1768361958764,5.46289162,3330.3,3329.1,6.78110642]
[1768361959790,4.88045771,3330.1,3329.1,6.78110642]
[1768361960116,5.29245771,3330.0,3329.1,6.78110642]
[1768361960382,5.29245771,3330.0,3328.9,3.16395828]
[1768361960538,5.29245771,3330.0,3329.0,0.31639583]
[1768361961132,1.11,3330.7,3330.3,6.78110642]
[1768361961335,0.412,3330.6,3330.3,6.78110642]
[1768361961632,4.64395022,3331.6,3330.6,6.78110642]
[1768361961849,1.82328529,3331.5,3330.6,6.78110642]
[1768361962147,1.17654532,3331.5,3330.6,6.78110642]
[1768361962834,1.73154532,3331.5,3330.6,6.78110642]
[1768361963031,1.73154532,3331.5,3330.2,6.78110642]
[1768361963032,4.6837607,3331.4,3330.2,6.78110642]
[1768361963230,5.3252913,3331.3,3330.3,11.20510642]
[1768361963525,5.3252913,3331.3,3330.3,6.78110642]